Cogmind - Beta 11.1 @@@ ROGUE MODE // 2022.05.31 @ 13:23:53 Player: btmk16 Result: Destroyed by Y-45 Defender with Beam Rifle Performance ------------- Evolutions (2) 1000 Regions Visited (8) 1600 Robots Destroyed (150) 750 Value Destroyed (3604) 3604 Prototype IDs (6) 120 Alien Tech Used (0) 0 Bonus (317) 317 TOTAL SCORE: 7391 Bonus ------- High Alert Combat Kills 158 Follower Combat Kills 452 Friendly Fire -293 Cogmind --------- Core Integrity 0/550 Matter 300/300 Energy 160/160 System Corruption 6% Temperature Cool (9) Movement Treading (246) Ox1 Location -8/Storage Parts ------- > --- POWER (1) -------- Light Nuclear Core > --- PROPULSION (3) --- Light Treads Armored Treads Armored Treads > --- UTILITY (5) ------ Cooling System Huge Storage Unit Advanced Visual Processing Unit Improved Targeting Computer Light Armor Plating > --- WEAPON (2) ------- Flak Cannon Scatter Rocket Array > --- INVENTORY (25) --- Light Treads Armored Treads Advanced Treads Titanium Leg Wheel Wheel Improved Heat Sink Advanced Heat Sink Cooling System Cooling System Compact Matter Pod (150) Structural Scanner Machine Analyzer Improved Terrain Scanner Improved Terrain Scanner Utility Shielding Hardened Light Armor Plating Heavy Particle Cannon Improved Assault Rifle Improved Assault Rifle Minigun Enhanced Autogun Scatter Rocket Array Scatter Rocket Array Heavy Flail Peak State ------------ > --- POWER ------------ Heavy Ion Engine > --- PROPULSION ------- Titanium Leg Titanium Leg Titanium Leg > --- UTILITY ---------- Cooling System Huge Storage Unit Advanced Visual Processing Unit Improved Targeting Computer Improved Utility Shielding > --- WEAPON ----------- Enhanced Autogun Enhanced Autogun > --- INVENTORY -------- Light Treads Titanium Leg Wheel Wheel Compact Wheel Compact Wheel Cooling System Cooling System Compact Matter Pod Structural Scanner Machine Analyzer Improved Terrain Scanner Improved Terrain Scanner Utility Shielding Hardened Light Armor Plating Field Laser Pulse Rifle Heavy Particle Cannon Light Assault Rifle Improved Assault Rifle Rocket Launcher Rocket Launcher Improved Grenade Launcher Hammer Heavy Flail [Rating: 36] Favorites ----------- Power Improved Ion Engine Engine Improved Ion Engine Power Core Light Nuclear Core Propulsion Compact Wheel Treads Light Treads Leg Titanium Leg Wheel Compact Wheel Utility Cooling System Device Cooling System Storage Huge Storage Unit Processor Improved Targeting Computer Protection Medium Armor Plating Weapon Improved Light Cannon Energy Gun Beam Rifle Energy Cannon Heavy Particle Cannon Ballistic Gun Light Assault Rifle Ballistic Cannon Improved Light Cannon Launcher Scatter Rocket Array Impact Weapon Hammer Build | -11 -10 -10 -9 -9 -9 -8 -8 -8 ------- Run | Scr Mat Min Mat Min Exi Min Mat Sto Slots Evolved 4 | . . . 2 . . . 2 . Power . | . . . . . . . . . Propulsion 1 | . . . 1 . . . . . Utility 3 | . . . 1 . . . 2 . Weapon . | . . . . . . . . . Parts Attached 102 | . 8 5 32 2 . 5 33 17 Power 9 | . 1 . 3 . . . 3 2 Engine 8 | . 1 . 3 . . . 3 1 Core 1 | . . . . . . . . 1 Reactor . | . . . . . . . . . Propulsion 38 | . 2 2 10 1 . 5 12 6 Treads 15 | . . . 5 1 . . 4 5 Leg 4 | . . . . . . . 4 . Wheel 19 | . 2 2 5 . . 5 4 1 Hover . | . . . . . . . . . Flight . | . . . . . . . . . Utility 17 | . 3 . 7 1 . . 5 1 Device 4 | . 2 . 2 . . . . . Storage 1 | . 1 . . . . . . . Processor 3 | . . . . 1 . . 2 . Hackware . | . . . . . . . . . Protection 9 | . . . 5 . . . 3 1 Artifact . | . . . . . . . . . Weapon 38 | . 2 3 12 . . . 13 8 Energy Gun 2 | . . . 1 . . . 1 . Energy Cannon 1 | . . . . . . . 1 . Ballistic Gun 20 | . 2 3 7 . . . 6 2 Ballistic Cannon 12 | . . . 3 . . . 5 4 Launcher 2 | . . . . . . . . 2 Special Weapon . | . . . . . . . . . Impact Weapon 1 | . . . 1 . . . . . Slashing Weapon . | . . . . . . . . . Piercing Weapon . | . . . . . . . . . Special Melee Weapon . | . . . . . . . . . Unidentified Prototypes 4 | . . . 1 . . . 2 1 Parts Lost 37 | . 1 2 10 1 . 1 15 7 Power 5 | . . . 1 . . . 2 2 Propulsion 15 | . . 1 4 . . 1 7 2 Utility 6 | . . . 3 1 . . 1 1 Weapon 11 | . 1 1 2 . . . 5 2 Highest Loss Streak 6 | . 1 2 5 1 . 1 6 4 To Critical Strikes . | . . . . . . . . . Average Slot Usage (%) 98 | . 98 99 99 99 100 99 99 97 Engine 10 | . 14 14 10 11 11 11 9 3 Treads 7 | . . . 7 10 11 11 5 20 Leg 3 | . 9 . . . . . 11 . Wheel 18 | . 18 27 25 22 22 21 8 6 Device 11 | . 12 14 11 11 11 11 9 9 Storage 11 | . 14 14 11 11 11 11 9 9 Processor 6 | . . . . 6 11 11 17 18 Protection 5 | . . . 10 4 . . 8 8 Ballistic Gun 12 | . 27 28 10 . . . 8 3 Ballistic Cannon 8 | . . . 9 22 22 22 7 9 Naked Turns . | . . . . . . . . . Heaviest Build 105 | 13 91 91 105 105 98 98 102 105 Greatest Support 60 | 20 26 32 42 26 26 26 60 60 Greatest Overweight (x) 9 | . 3 3 6 4 3 3 4 9 Average Overweight (x) 2 | . 1 2 3 3 3 3 2 2 Largest Inventory Capacity 25 | . 25 25 25 25 25 25 25 25 Average Capacity 24 | . 19 25 25 25 25 25 25 25 Most Carried 25 | . 21 25 25 25 24 25 25 25 Average Carried 21 | . 12 23 24 24 24 24 21 24 Final Capacity 25 | 8 25 25 25 25 25 25 25 25 Final Carried 25 | 6 21 25 25 24 24 24 24 25 Class Distribution -------------------- 94% | Mutant 3% | Commander-Mutant Dominant Class ---------------- Mutant | -10/Materials Mutant | -10/Mines Mutant | -9/Materials Mutant | -9/Mines Mutant | -9/Exiles Mutant | -8/Mines Mutant | -8/Materials Mutant | -8/Storage Resources | -11 -10 -10 -9 -9 -9 -8 -8 -8 ----------- Run | Scr Mat Min Mat Min Exi Min Mat Sto Matter Collected 3805 | 200 200 181 970 115 . 287 1015 837 Remotely . | . . . . . . . . . Salvage Created 4266 | . 463 191 1438 174 . 208 1112 680 Parts 271 | . 26 20 103 6 . 15 67 34 Haulers Intercepted 14 | . 2 . 6 . . . 4 2 Recyclers Shooed 4 | . 1 1 1 . . 1 . . Parts Field Recycled . | . . . . . . . . . Retrieved Matter . | . . . . . . . . . Parts Self-Destructed . | . . . . . . . . . Prevented . | . . . . . . . . . Kills | -11 -10 -10 -9 -9 -9 -8 -8 -8 ------- Run | Scr Mat Min Mat Min Exi Min Mat Sto Combat Hostiles Destroyed 101 | . 10 7 26 2 . 10 25 21 Guns 43 | . 10 7 15 . . . 8 3 Cannons 53 | . . . 10 2 . 10 17 14 AOE 5 | . . . 1 . . . . 4 Classes Destroyed 13 | . 5 3 4 . . . 1 . Worker 11 | . . 1 4 1 . . 3 2 Builder 4 | . . 1 2 . . 1 . . Tunneler 5 | . . 2 1 . . 1 1 . Hauler 14 | . 2 . 6 . . . 4 2 Recycler 7 | . 1 . . 2 . 1 2 1 Operator 3 | . . . 3 . . . . . Watcher 3 | . 1 . 1 . . . . 1 Swarmer 35 | . 5 7 8 . . 7 4 4 Grunt 46 | . 5 . 10 1 . 3 13 14 Brawler 1 | . . . 1 . . . . . Duelist 2 | . . . 1 1 . . . . Sentry 17 | . . . 8 . . . 6 3 Hunter 2 | . . . . . . . 2 . Best Kill Streak 7 | . 3 3 7 2 . 3 5 7 Combat Bots Only 5 | . 3 3 5 2 . 3 4 5 Max Kills in Single Turn 6 | . 1 1 2 1 . 1 1 6 Gunslinging . | . . . . . . . . . Exploded 4 | . . . 1 . . . . 4 Melee . | . . . . . . . . . Uniques/NPCs Destroyed . | . . . . . . . . . Combat | -11 -10 -10 -9 -9 -9 -8 -8 -8 -------- Run | Scr Mat Min Mat Min Exi Min Mat Sto Damage Taken 6226 | . 389 236 1323 102 . 329 2413 1434 Core 957 | . 71 115 152 33 . 36 334 216 Absorbed by Shields . | . . . . . . . . . Redirected to Shielding 119 | . . . . . . . 75 44 Core Remaining (%) 56 | 100 . 25 . . . 44 . . Volleys Fired 427 | . 65 30 112 13 . 31 110 66 Largest 2 | . 2 2 2 2 . 2 2 2 Hottest 138 | . 60 40 79 78 . 78 138 88 Shots Fired 829 | . 128 59 221 26 . 62 214 119 Gun 439 | . 128 59 161 . . . 61 30 Cannon 389 | . . . 60 26 . 62 153 88 Launcher 1 | . . . . . . . . 1 Special . | . . . . . . . . . Kinetic 780 | . 120 59 208 26 . 62 187 118 Thermal 40 | . . . 13 . . . 27 . Explosive 1 | . . . . . . . . 1 Electromagnetic 8 | . 8 . . . . . . . Robot Hit Streak 21 | . 11 7 15 15 . 8 21 11 Robot Miss Streak 10 | . 4 3 5 2 . 5 3 10 Penetration Max . | . . . . . . . . . Secondary Targets 1 | . . 1 . . . . . . Max Gunslinging Chain 1 | . . 1 . . . . . . Shots Hit Robots 554 | . 85 35 133 19 . 32 154 96 Core Hits 272 | . 31 16 56 5 . 17 56 91 Critical Kills . | . . . . . . . . . Critical Parts Destroyed . | . . . . . . . . . Critical Strikes 16 | . . . 5 . . 2 9 . Burn 4 | . . . 3 . . . 1 . Blast 12 | . . . 2 . . 2 8 . Melee Attacks 2 | . . . 2 . . . . . Impact 2 | . . . 2 . . . . . Slashing . | . . . . . . . . . Piercing . | . . . . . . . . . Sneak Attacks . | . . . . . . . . . Combat Hostiles . | . . . . . . . . . Follow-up Attacks . | . . . . . . . . . Damage Inflicted 9881 | . 729 301 2476 430 . 693 3111 2141 Guns 3907 | . 729 301 1713 . . . 794 370 Cannons 5629 | . . . 683 430 . 693 2317 1506 Explosions 345 | . . . 80 . . . . 265 Melee . | . . . . . . . . . Ramming . | . . . . . . . . . Kinetic 8837 | . 663 301 2259 430 . 693 2615 1876 Thermal 633 | . . . 137 . . . 496 . Explosive 345 | . . . 80 . . . . 265 Electromagnetic 66 | . 66 . . . . . . . Impact . | . . . . . . . . . Slashing . | . . . . . . . . . Piercing . | . . . . . . . . . Highest Corruption 6 | . 1 1 1 1 1 1 6 6 Average Corruption 2 | . 1 1 1 1 1 1 2 6 Corruption Purged . | . . . . . . . . . Corruption Blocked . | . . . . . . . . . Effects 71 | . 2 6 . 5 . 3 23 32 Message Errors 21 | . . 2 . 2 . 2 4 11 Matter Fused 18 | . 1 3 . 1 . . 6 7 Heat Flow Errors 4 | . . . . 1 . . 1 2 Energy Discharges 6 | . . 1 . 1 . . 2 2 Parts Rejected 1 | . . . . . . . . 1 Data Loss (minor) 10 | . 1 . . . . . 5 4 Data Loss (major) 3 | . . . . . . . 2 1 Misfires 4 | . . . . . . . 2 2 Alerts 1 | . . . . . . 1 . . Weapon Failures 3 | . . . . . . . 1 2 Overload Shots . | . . . . . . . . . Overflow Damage 56 | . . . 24 9 . 9 14 . Projectiles 43 | . . . 11 9 . 9 14 . Explosions 13 | . . . 13 . . . . . Melee . | . . . . . . . . . Knockbacks 66 | . . . 2 5 . 13 17 29 Impact . | . . . . . . . . . Kinetic 63 | . . . 2 5 . 11 16 29 Secondary 3 | . . . . . . 2 1 . Self-Inflicted Damage 194 | . . . 79 . . . . 115 Shots 3 | . . . 1 . . . . 2 Rammed 1 | . . 1 . . . . . . Targets Rammed 1 | . . 1 . . . . . . Kicked . | . . . . . . . . . Crushed . | . . . . . . . . . Highest Temperature 227 | . 112 . 12 121 . . 117 227 Average Temperature 47 | . 57 . 9 80 . . 18 64 Received Heat Transfer 2151 | . 132 . 300 . . 72 963 684 Siege Activations . | . . . . . . . . . Robots Corrupted . | . . . . . . . . . Combat Hostiles . | . . . . . . . . . Parts Fried 1 | . . . . . . . . 1 Impact Corruptions . | . . . . . . . . . Robots Melted . | . . . . . . . . . Combat Hostiles . | . . . . . . . . . Parts Melted . | . . . . . . . . . Heat Transferred 1369 | . . . 555 . . . 814 . Parts Sabotaged . | . . . . . . . . . Parts Stolen . | . . . . . . . . . Parts Stripped . | . . . . . . . . . Power Chain Reactions . | . . . . . . . . . Missiles Intercepted . | . . . . . . . . . Alert | -11 -10 -10 -9 -9 -9 -8 -8 -8 ------- Run | Scr Mat Min Mat Min Exi Min Mat Sto Peak Influence 643 | . 150 155 571 161 . 175 394 643 Initial 111 | . . 20 8 91 . . 68 111 Average 205 | . 75 72 267 113 . 33 256 450 Maximum Alert Level 2 | . . . 2 . . . 1 2 Low Security (%) 58 | . 100 100 28 100 . 100 34 14 Level 1 28 | . . . 58 . . . 65 12 Level 2 13 | . . . 13 . . . . 72 Level 3 . | . . . . . . . . . Level 4 . | . . . . . . . . . Level 5 . | . . . . . . . . . High Security . | . . . . . . . . . Max Security . | . . . . . . . . . Squads Dispatched 16 | . 2 . 3 . . . 3 8 Investigation 1 | . 1 . . . . . . . Extermination . | . . . . . . . . . Reinforcement 11 | . 1 . 3 . . . 3 4 Assault 1 | . . . . . . . . 1 Garrison 3 | . . . . . . . . 3 Intercept . | . . . . . . . . . Searches Triggered . | . . . . . . . . . Construction Impeded 1 | . . . . . . . 1 . Haulers Reinforced . | . . . . . . . . . Active Scanning Responses . | . . . . . . . . . Cargo Convoy Interrupts . | . . . . . . . . . Stealth | -11 -10 -10 -9 -9 -9 -8 -8 -8 --------- Run | Scr Mat Min Mat Min Exi Min Mat Sto Distress Signals 13 | . 2 . 3 . . . 3 5 Communications Jammed . | . . . . . . . . . Distress Signals . | . . . . . . . . . Times Spotted 173 | . 20 10 46 2 . 10 35 50 Peak Tracking Total 7 | . 4 3 6 2 . 3 6 7 Tactical Retreats 11 | . 1 1 5 . . 1 2 1 Traps | -11 -10 -10 -9 -9 -9 -8 -8 -8 ------- Run | Scr Mat Min Mat Min Exi Min Mat Sto Traps Triggered 4 | . 2 . 1 . . . 1 . Indirectly . | . . . . . . . . . Trap Hack Attempts . | . . . . . . . . . Triggered . | . . . . . . . . . Disarmed . | . . . . . . . . . Reprogrammed . | . . . . . . . . . Reused . | . . . . . . . . . Traps Extracted . | . . . . . . . . . Installed . | . . . . . . . . . Triggered . | . . . . . . . . . Machines | -11 -10 -10 -9 -9 -9 -8 -8 -8 ---------- Run | Scr Mat Min Mat Min Exi Min Mat Sto Machines Disabled 10 | . . . 5 1 . 1 2 1 Max in Single Turn 1 | . . . 1 1 . 1 1 1 Machines Sabotaged . | . . . . . . . . . Garrisons Compromised . | . . . . . . . . . Overloaded Fab Kills . | . . . . . . . . . Hacking | -11 -10 -10 -9 -9 -9 -8 -8 -8 --------- Run | Scr Mat Min Mat Min Exi Min Mat Sto Machines Accessed 15 | . 4 . 9 . . . 1 1 Terminals 14 | . 4 . 8 . . . 1 1 Fabricators . | . . . . . . . . . Repair Stations . | . . . . . . . . . Recycling Units . | . . . . . . . . . Scanalyzers 1 | . . . 1 . . . . . Garrison Access . | . . . . . . . . . Total Hacks 43 | . 13 . 26 . . . 2 2 Successful 25 | . 8 . 16 . . . . 1 Failed 18 | . 5 . 10 . . . 2 1 Catastrophic 1 | . . . 1 . . . . . Database Lockouts . | . . . . . . . . . Manual 15 | . 7 . 8 . . . . . Terminals 42 | . 13 . 25 . . . 2 2 Fabricators . | . . . . . . . . . Repair Stations . | . . . . . . . . . Recycling Units . | . . . . . . . . . Scanalyzers 1 | . . . 1 . . . . . Garrison Access . | . . . . . . . . . Terminal Hacks 22 | . 7 . 14 . . . . 1 Robot Analysis 7 | . 5 . 2 . . . . . Prototype ID Bank 1 | . . . 1 . . . . . Alert Level 5 | . . . 4 . . . . 1 Unreport Threat 3 | . . . 3 . . . . . Transport Status 1 | . . . 1 . . . . . Hauler Manifests 3 | . 1 . 2 . . . . . Registered Components 1 | . . . 1 . . . . . Zone Layout 1 | . 1 . . . . . . . Fabricator Hacks . | . . . . . . . . . Repair Station Hacks . | . . . . . . . . . Recycling Unit Hacks . | . . . . . . . . . Scanalyzer 1 | . . . 1 . . . . . Insert Component 1 | . . . 1 . . . . . Garrison Access Hacks . | . . . . . . . . . Unauthorized Hacks 2 | . 1 . 1 . . . . . Terminals 2 | . 1 . 1 . . . . . Botnet 2 | . 1 . 1 . . . . . Fabricators . | . . . . . . . . . Repair Stations . | . . . . . . . . . Recycling Units . | . . . . . . . . . Scanalyzers . | . . . . . . . . . Garrison Access . | . . . . . . . . . Data Cores Recovered 1 | . . . 1 . . . . . Used 1 | . . . 1 . . . . . Hacking Detections 10 | . 3 . 5 . . . 1 1 Full Trace Events 2 | . . . 1 . . . 1 . Feedback Events . | . . . . . . . . . Feedback Blocked . | . . . . . . . . . Robot Schematics Acquired . | . . . . . . . . . Robots Built . | . . . . . . . . . Authchips . | . . . . . . . . . Time . | . . . . . . . . . Total Robot Build Rating . | . . . . . . . . . Part Schematics Acquired . | . . . . . . . . . Parts Built . | . . . . . . . . . Authchips . | . . . . . . . . . Time . | . . . . . . . . . Total Part Build Rating . | . . . . . . . . . Parts Repaired . | . . . . . . . . . Time . | . . . . . . . . . Parts Recycled . | . . . . . . . . . Recycled Matter . | . . . . . . . . . Retrieved Matter . | . . . . . . . . . Retrieved Components . | . . . . . . . . . Parts Scanalyzed . | . . . . . . . . . Part Schematics Acquired . | . . . . . . . . . Parts Damaged . | . . . . . . . . . Bothacking | -11 -10 -10 -9 -9 -9 -8 -8 -8 ------------ Run | Scr Mat Min Mat Min Exi Min Mat Sto Used RIF Installer . | . . . . . . . . . Robots Hacked . | . . . . . . . . . Non-combat . | . . . . . . . . . Combat . | . . . . . . . . . Robot Hacks Applied . | . . . . . . . . . Relay Couplers Released . | . . . . . . . . . Fabnet Peak Effective % . | . . . . . . . . . Robots Rewired . | . . . . . . . . . Allies Hacked . | . . . . . . . . . Hacks Repelled . | . . . . . . . . . Allies | -11 -10 -10 -9 -9 -9 -8 -8 -8 -------- Run | Scr Mat Min Mat Min Exi Min Mat Sto Total Allies 14 | . . 3 . . . . . 11 Largest Group 11 | . . 3 3 . . . . 11 Highest-Rated Group 273 | . . 40 40 . . . . 273 Highest-Rated Ally 100 | . . 16 16 . . . . 100 Total Orders . | . . . . . . . . . Ally Attacks 76 | . . 6 28 . . . . 42 Total Damage 1219 | . . 46 250 . . . . 923 Kills 17 | . . 2 4 . . . . 11 Allies Corrupted . | . . . . . . . . . Allies Melted . | . . . . . . . . . Intel | -11 -10 -10 -9 -9 -9 -8 -8 -8 ------- Run | Scr Mat Min Mat Min Exi Min Mat Sto Robot Analysis Total 7 | . 5 . 2 . . . . . Derelict Logs Recovered 2 | . . 1 . 1 . . . . Drone Launches . | . . . . . . . . . Drone Recoveries . | . . . . . . . . . Exploration | -11 -10 -10 -9 -9 -9 -8 -8 -8 ------------- Run | Scr Mat Min Mat Min Exi Min Mat Sto Turns Passed 7744 | . 1317 832 2107 447 177 656 1200 1008 Spaces Moved 4293 | 1 851 531 1248 287 132 408 478 357 Core . | . . . . . . . . . Treads 199 | . . . . . . . 7 192 Legs 485 | 1 301 . . . . . 183 . Wheels 3609 | . 550 531 1248 287 132 408 288 165 Hover . | . . . . . . . . . Flight . | . . . . . . . . . Fastest Speed 116 | 120 120 130 116 135 135 135 135 145 Average Speed 143 | 120 129 134 135 140 135 135 164 207 Slowest Speed 246 | 120 135 135 190 150 135 135 240 246 Overloaded Moves . | . . . . . . . . . Propulsion Burnouts . | . . . . . . . . . Robots Hopped . | . . . . . . . . . Cave-ins Triggered . | . . . . . . . . . Exploration Rate (%) 63 | 1 98 91 93 48 33 84 53 66 Regions Visited 8 Branch Regions 5 Pre-discovered Areas 1 | . . 1 . . . . . . Known Exits Taken . | . . . . . . . . . Unknown Exits Taken 8 | 1 1 1 1 1 1 1 1 . Scrap Searched 4 | . . 1 . 3 . . . . Spaces Dug 1 | . . . 1 . . . . . Terrain Destroyed 85 | . . . 61 . . 2 8 14 Melee 1 | . . . 1 . . . . . Projectile 12 | . . . 2 . . 2 8 . AOE 72 | . . . 58 . . . . 14 Terrain Rammed . | . . . . . . . . . Walls Destroyed . | . . . . . . . . . Machines Disabled . | . . . . . . . . . Actions | -11 -10 -10 -9 -9 -9 -8 -8 -8 --------- Run | Scr Mat Min Mat Min Exi Min Mat Sto Total 5128 | . 961 598 1467 305 131 452 695 519 Wait 176 | . 14 29 23 3 . 6 47 54 Move 4285 | . 850 530 1247 286 131 407 477 357 Hop . | . . . . . . . . . Pick Up 72 | . 18 3 22 1 . . 16 12 Fast Attach 18 | . 2 . 6 . . . 5 5 Attach 44 | . 1 2 14 2 . 1 19 5 Detach 9 | . . . 4 . . . 3 2 Swap 40 | . 5 3 12 . . 4 9 7 Drop 54 | . 6 . 25 . . 3 9 11 Fire 427 | . 65 30 112 13 . 31 110 66 Melee 2 | . . . 2 . . . . . Ram 1 | . . 1 . . . . . . Kick . | . . . . . . . . . Crush . | . . . . . . . . . Escape Stasis . | . . . . . . . . . Rewire . | . . . . . . . . . Trap . | . . . . . . . . . Miscellaneous . | . . . . . . . . . Route ------- -11/Scrapyard -10/Materials (discovered 4 exits: *Mat x3 / [*Min]) -10/Mines (discovered 2 exits: *Mat x2) -9/Materials (discovered 5 exits: *Mat x3 / [*Min x2]) -9/Mines (discovered 3 exits: *Mat / [*Exi] / [*Zio]) -9/Exiles -8/Mines -8/Materials (discovered 3 exits: [*Fac] / *Sto x2) -8/Storage History --------- Turn | Location | Event 1 | -11/Scrapyard | Discovered new exit (range 0) 1 | -11/Scrapyard | Entered Materials 175 | -10/Materials | Discovered new exit (range 4) 193 | -10/Materials | Discovered new exit (range 16) 306 | -10/Materials | Build established: Mutant 371 | -10/Materials | Discovered new exit (range 6) 619 | -10/Materials | Discovered new exit (range 15) 1318 | -10/Materials | Entered Mines 1456 | -10/Mines | Discovered new exit (range 8) 1540 | -10/Mines | Core integrity fell below 50% 1632 | -10/Mines | Assisted by bots powering up and referring to "LRC-V3" 1834 | -10/Mines | Learned location of Zion (-7) 1865 | -10/Mines | Discovered new exit (range 10) 2150 | -10/Mines | Entered Materials 2150 | -9/Materials | Accompanied by 3 allies 2150 | -9/Materials | Evolved 2 slots: Propulsion x1, Utility x1 2722 | -9/Materials | Discovered new exit (range 15) 2770 | -9/Materials | Lost 3 parts (1p1n1u) 2909 | -9/Materials | Discovered new exit (range 3) 2980 | -9/Materials | Lost 5 parts (2n1u2w) 3044 | -9/Materials | Discovered new exit (range 6) 3185 | -9/Materials | Discovered new exit (range 15) 3941 | -9/Materials | Discovered new exit (range 10) 4257 | -9/Materials | Entered Mines 4284 | -9/Mines | Learned 2 Materials zone layouts 4526 | -9/Mines | A Derelict revealed a hidden shortcut to a safe place 4647 | -9/Mines | Discovered new exit (range 6) 4667 | -9/Mines | Deemed a non-threat by the Exiles lab entrance 4668 | -9/Mines | Discovered new exit (range 5) 4704 | -9/Mines | Entered Exiles 4738 | -9/Exiles | Met 8R-AWN 4760 | -9/Exiles | Met EX-HEX 4796 | -9/Exiles | Met EX-BIN 4866 | -9/Exiles | Discovered new exit (range 14) 4881 | -9/Exiles | Entered Mines 5180 | -8/Mines | Core integrity fell below 50% 5468 | -8/Mines | Discovered new exit (range 11) 5537 | -8/Mines | Entered Materials 5537 | -8/Materials | Evolved 2 slots: Utility x2 5794 | -8/Materials | Lost 3 parts (3n) 5873 | -8/Materials | Lost 6 parts (3n3w) 6495 | -8/Materials | Discovered new exit (range 11) 6524 | -8/Materials | Discovered new exit (range 16) 6534 | -8/Materials | Discovered new exit (range 20) 6645 | -8/Materials | Core integrity fell below 50% 6737 | -8/Materials | Entered Storage 6990 | -8/Storage | Core integrity fell below 20% 7047 | -8/Storage | Lost 4 parts (1p1n2w) 7075 | -8/Storage | Garrison activated, responded to threat 7271 | -8/Storage | Met 01-MTF 7347 | -8/Storage | Found Prototype Launcher 7347 | -8/Storage | Identified Scatter Rocket Array 7351 | -8/Storage | Found Scatter Rocket Array 7354 | -8/Storage | Found Scatter Rocket Array 7357 | -8/Storage | Found Scatter Rocket Array 7485 | -8/Storage | Assisted by bots powering up and referring to "LRC-V3" 7537 | -8/Storage | First assault squad dispatched 7745 | -8/Storage | Destroyed by Y-45 Defender with Beam Rifle Last Messages --------------- 07648_ K-01 Serf collects debris. 07653_ System corrupted: Component data lost. 07662_ The unstable cave ceiling collapses. 07663_ K-01 Serf collects debris. 07668_ UFK510HL 07731_ G-50 Soldier destroyed. 07737_ System corrupted: Matter fused (-10). 07738_ 01-MTF suffers critical hit (Burn). 07738_ 01-MTF destroyed. 07742_ Soldier 3a destroyed. 07743_ Acquired 10 matter. Map ----- +----------------------------------------------------+ | ???????????????????????????????? | | ???????????????????????????????? | | ???????????????????????????????? | | ???????????????????????????????? | | ???????????????????????????????? | | ???????????????????????????????? | | ??????g ??????????????????????? | | ?????#g #?????????????????????? | | ????? ?????????????????????? | | ????? ?????????????????????? | | ????? Y ?????????????????????? | | ????? ?????????????????????? | | ????? ?????????????????????? | | ?????# #?????????????????????? | | ?????# #?????????????????????? | | ?????# ###???????????????????? | | ?????# ; ????????????????????? | | ????## =; ????????????????????? | | ????#; %% #????????????????????? | | ????#;=== #????????????????????? | | ????#; *% #????????????????????? | | ????#;=![;#????????????????????? | | ?????; ! ;?????????????????????? | | ?????# #?????????????????????? | | ?????# #?#############???????? | | ?????#g@!#? #???????? | | ?????# # #???????? | | ?????# gg# / #???????? | | ?????# ; #???????? | | ?????# # ! #???????? | | ?????# # !#???????? | | ?????# #?###+#########???????? | | ?????# #???# #???????????????? | | ?????# #???# #???????????##### | | ?????# #???# #???????????# # | | ?????# #???# #???????????# | | ?????# ##### #???????????# | | ?????# #?######????# | | ?????# # [#????# T# | | ?????# # ! #????##### | | ?????# + #????????# | | ?????# ##### # #????????# | | ?????# #???# # ########## | | ?????##+##???# #? [ # # | | ????? ??##/#####+## |# | | ???# # # ## = # | | ???# # # ## # | | ???# # ![ # ## * # | | ???# # ! # ## !# | | ???# # ## # | +----------------------------------------------------+ Best States ------------- Heat Dissipation 53 Energy Generation 14 Energy Capacity 280 Matter Stores 300 Matter Capacity 300 Sight Range 20 Robot Scan Range 14 Terrain Scan Density 10 Armor Coverage 225 Utility Shielding 66 Evasion (%) 55 Targeting Accuracy 6 Recoil Reduction 3 Item Schematics ----------------- None Robot Schematics ------------------ None Fabricated ------------ Nothing Alien Tech Used ----------------- None Achievements -------------- None Challenges ------------ None Game ------ Seed FlightMediumMicrothruster Manual? 0 Play Time 00:48:29 Cumulative 282.8 hours Start 2022.05.31 @ 12:25:14 End 2022.05.31 @ 13:23:53 Sessions 1 Manual Loads 0 Difficulty Rogue Special Mode None Game No. 370 Rogue 369 Adventurer 0 Explorer 1 Win Type - Total 6 Types 5/0/0/1/0/0/0/0/0 Lore% 68 Gallery% 79 Achievement% 58 Wizard Run 0 Options --------- ASCII 0 Keyboard 1 Movement Vi Keybinds 0 Fullscreen 1 Font 18/SmallcapsGlow Map View 76x50 Tactical HUD 1 Map Filters NONE Filters NONE Steam 1 RUN: 78302399-05b6-401e-a6e1-0f26d89806c2